[Event "*** Titled Tuesday Blitz"]
[Site "Chess.com"]
[Date "2020.11.03"]
[Round "1"]
[White "Bacyanide"]
[Black "S2PAc"]
[Result "0-1"]
[WhiteElo "2438"]
[BlackElo "2865"]
[TimeControl "180+1"]
[EndTime "10:06:23 PST"]
[Termination "S2PAc won on time"]

1. d4 {[%clk 0:02:56.1]} 1... Nf6 {[%clk 0:02:59.7]} 2. c4 {[%clk 0:02:54.8]}
2... e6 {[%clk 0:03:00]} 3. Nc3 {[%clk 0:02:53.8]} 3... Bb4 {[%clk 0:03:00.5]}
4. e3 {[%clk 0:02:52.9]} 4... O-O {[%clk 0:02:58.6]} 5. Bd2 {[%clk 0:02:51.6]}
5... b6 {[%clk 0:02:53.8]} 6. Bd3 {[%clk 0:02:48.4]} 6... Bb7 {[%clk 0:02:54.3]}
7. Nf3 {[%clk 0:02:48.5]} 7... d5 {[%clk 0:02:54.8]} 8. cxd5 {[%clk 0:02:48.2]}
8... exd5 {[%clk 0:02:55.7]} 9. O-O {[%clk 0:02:47.2]} 9... Bd6 {[%clk
0:02:56.2]} 10. Nb5 {[%clk 0:02:40.5]} 10... Be7 {[%clk 0:02:55.7]} 11. Ne5
{[%clk 0:02:33]} 11... c5 {[%clk 0:02:55.8]} 12. Rc1 {[%clk 0:02:23.4]} 12...
Nc6 {[%clk 0:02:52.1]} 13. f4 {[%clk 0:02:14.4]} 13... a6 {[%clk 0:02:44.4]} 14.
Nxc6 {[%clk 0:02:13.3]} 14... Bxc6 {[%clk 0:02:45.3]} 15. Nc3 {[%clk 0:02:13.8]}
15... c4 {[%clk 0:02:41.5]} 16. Bb1 {[%clk 0:02:11.6]} 16... b5 {[%clk 0:02:42]}
17. Qf3 {[%clk 0:02:08.3]} 17... b4 {[%clk 0:02:35]} 18. Ne2 {[%clk 0:02:07.9]}
18... Ne4 {[%clk 0:02:35.4]} 19. Bxe4 {[%clk 0:01:57.4]} 19... dxe4 {[%clk
0:02:36.3]} 20. Qf2 {[%clk 0:01:57.7]} 20... Bb5 {[%clk 0:02:26.2]} 21. f5
{[%clk 0:01:54.9]} 21... a5 {[%clk 0:02:18.7]} 22. Ng3 {[%clk 0:01:54.4]} 22...
c3 {[%clk 0:02:16.4]} 23. bxc3 {[%clk 0:01:55.3]} 23... Bxf1 {[%clk 0:02:16.8]}
24. Rxf1 {[%clk 0:01:51]} 24... Qd5 {[%clk 0:02:15.1]} 25. Nh5 {[%clk
0:01:28.6]} 25... f6 {[%clk 0:02:04.5]} 26. Qg3 {[%clk 0:01:24.3]} 26... Qf7
{[%clk 0:02:04.3]} 27. Nf4 {[%clk 0:01:22]} 27... Bd6 {[%clk 0:02:04.2]} 28. Qg4
{[%clk 0:01:05.7]} 28... Bxf4 {[%clk 0:02:02.6]} 29. Qxf4 {[%clk 0:01:06.5]}
29... Qxa2 {[%clk 0:01:58.3]} 30. Be1 {[%clk 0:00:56.6]} 30... Rfe8 {[%clk
0:01:49.2]} 31. cxb4 {[%clk 0:00:53.4]} 31... a4 {[%clk 0:01:49.5]} 32. b5
{[%clk 0:00:49.6]} 32... Qb3 {[%clk 0:01:46.7]} 33. Bh4 {[%clk 0:00:36.2]} 33...
a3 {[%clk 0:01:44.1]} 34. Qg3 {[%clk 0:00:29.7]} 34... Kh8 {[%clk 0:01:38.4]}
35. Rc1 {[%clk 0:00:10]} 35... a2 {[%clk 0:01:33.4]} 36. Qe1 {[%clk 0:00:09.9]}
36... Qxb5 {[%clk 0:01:28.9]} 37. Ra1 {[%clk 0:00:06.2]} 37... Qxf5 {[%clk
0:01:26]} 38. Bg3 {[%clk 0:00:04.6]} 38... Qd5 {[%clk 0:01:25.9]} 39. Qc3 {[%clk
0:00:04.3]} 39... Rec8 {[%clk 0:01:24.6]} 40. Qb2 {[%clk 0:00:02.9]} 40... Qc4
{[%clk 0:01:24.3]} 41. Be1 {[%clk 0:00:02.2]} 41... Qc2 {[%clk 0:01:24]} 0-1

[Event "*** Titled Tuesday Blitz"]
[Site "Chess.com"]
[Date "2020.11.03"]
[Round "1"]
[White "vovachesss"]
[Black "WeAintSurePal"]
[Result "1-0"]
[WhiteElo "2695"]
[BlackElo "2354"]
[TimeControl "180+1"]
[EndTime "10:06:23 PST"]
[Termination "vovachesss won by checkmate"]

1. c4 {[%clk 0:02:56.4]} 1... Nf6 {[%clk 0:02:55.8]} 2. Nc3 {[%clk 0:02:56.4]}
2... e5 {[%clk 0:02:54]} 3. g3 {[%clk 0:02:55.2]} 3... Bb4 {[%clk 0:02:54]} 4.
e4 {[%clk 0:02:55.1]} 4... O-O {[%clk 0:02:49.2]} 5. Bg2 {[%clk 0:02:53.5]} 5...
Nc6 {[%clk 0:02:45.7]} 6. Nge2 {[%clk 0:02:51.8]} 6... d6 {[%clk 0:02:44.3]} 7.
O-O {[%clk 0:02:51.5]} 7... a5 {[%clk 0:02:44.7]} 8. d3 {[%clk 0:02:42.3]} 8...
h6 {[%clk 0:02:44]} 9. Be3 {[%clk 0:02:38.9]} 9... Bc5 {[%clk 0:02:42.9]} 10. h3
{[%clk 0:02:34.4]} 10... Re8 {[%clk 0:02:42]} 11. Qd2 {[%clk 0:02:30.5]} 11...
Nd4 {[%clk 0:02:39.6]} 12. Bxd4 {[%clk 0:02:23.5]} 12... Bxd4 {[%clk 0:02:40.5]}
13. Nxd4 {[%clk 0:02:19.6]} 13... exd4 {[%clk 0:02:41.4]} 14. Nb5 {[%clk
0:02:17.3]} 14... c5 {[%clk 0:02:41.2]} 15. f4 {[%clk 0:01:50.9]} 15... Nh7
{[%clk 0:02:39.8]} 16. Rae1 {[%clk 0:01:45.4]} 16... Ra6 {[%clk 0:02:34.9]} 17.
e5 {[%clk 0:01:30.3]} 17... dxe5 {[%clk 0:02:33.4]} 18. fxe5 {[%clk 0:01:30.5]}
18... Ng5 {[%clk 0:02:28]} 19. h4 {[%clk 0:01:24.5]} 19... Ne6 {[%clk
0:02:22.4]} 20. Nd6 {[%clk 0:01:13.5]} 20... Rxd6 {[%clk 0:02:21.3]} 21. exd6
{[%clk 0:01:12.6]} 21... Qxd6 {[%clk 0:02:22.2]} 22. Qf2 {[%clk 0:01:12.7]}
22... Re7 {[%clk 0:02:19.2]} 23. Bd5 {[%clk 0:01:11.7]} 23... b6 {[%clk
0:02:17.5]} 24. Kh2 {[%clk 0:01:11.3]} 24... g6 {[%clk 0:02:02.4]} 25. Qf6
{[%clk 0:01:09.1]} 25... h5 {[%clk 0:01:58.6]} 26. Re5 {[%clk 0:00:59.7]} 26...
a4 {[%clk 0:01:56.3]} 27. Rfe1 {[%clk 0:00:37.1]} 27... Bd7 {[%clk 0:01:48.4]}
28. Kg1 {[%clk 0:00:32.7]} 28... b5 {[%clk 0:01:41.7]} 29. b3 {[%clk 0:00:30]}
29... axb3 {[%clk 0:01:39.2]} 30. axb3 {[%clk 0:00:30.9]} 30... bxc4 {[%clk
0:01:37.6]} 31. bxc4 {[%clk 0:00:31.4]} 31... Bc8 {[%clk 0:01:36.2]} 32. g4
{[%clk 0:00:29.7]} 32... hxg4 {[%clk 0:01:27.2]} 33. h5 {[%clk 0:00:28.9]} 33...
Qd7 {[%clk 0:00:53.2]} 34. hxg6 {[%clk 0:00:23.1]} 34... Nf8 {[%clk 0:00:53.3]}
35. Rxe7 {[%clk 0:00:19.2]} 35... Qd6 {[%clk 0:00:49.9]} 36. Bxf7# {[%clk
0:00:18]} 1-0

[Event "*** Titled Tuesday Blitz"]
[Site "Chess.com"]
[Date "2020.11.03"]
[Round "1"]
[White "ShcufNaiRolf"]
[Black "ckgchess"]
[Result "0-1"]
[WhiteElo "2342"]
[BlackElo "2673"]
[TimeControl "180+1"]
[EndTime "10:06:25 PST"]
[Termination "ckgchess won by checkmate"]

1. e4 {[%clk 0:02:58.2]} 1... Nf6 {[%clk 0:02:57.3]} 2. e5 {[%clk 0:02:56.4]}
2... Nd5 {[%clk 0:02:57.2]} 3. d4 {[%clk 0:02:56.4]} 3... d6 {[%clk 0:02:57.2]}
4. c4 {[%clk 0:02:56.2]} 4... Nb6 {[%clk 0:02:57.4]} 5. exd6 {[%clk 0:02:56.3]}
5... cxd6 {[%clk 0:02:58.3]} 6. d5 {[%clk 0:02:56.5]} 6... g6 {[%clk 0:02:57.1]}
7. Qd4 {[%clk 0:02:55.7]} 7... f6 {[%clk 0:02:31.7]} 8. Ne2 {[%clk 0:02:53.5]}
8... Bg7 {[%clk 0:02:31.9]} 9. Nf4 {[%clk 0:02:53.2]} 9... O-O {[%clk 0:02:30]}
10. Nc3 {[%clk 0:02:51.7]} 10... Na6 {[%clk 0:02:30.1]} 11. Bd2 {[%clk 0:02:24]}
11... Nc5 {[%clk 0:02:26.6]} 12. Be2 {[%clk 0:02:13.7]} 12... e5 {[%clk
0:02:12.8]} 13. dxe6 {[%clk 0:02:12.2]} 13... Nxe6 {[%clk 0:02:13.5]} 14. Nxe6
{[%clk 0:02:08.6]} 14... Bxe6 {[%clk 0:02:14.4]} 15. Bf4 {[%clk 0:01:19]} 15...
Rc8 {[%clk 0:02:09.5]} 16. Qxd6 {[%clk 0:01:06.7]} 16... Bxc4 {[%clk 0:02:01.8]}
17. Bxc4+ {[%clk 0:00:38.2]} 17... Nxc4 {[%clk 0:02:02.1]} 18. Qe6+ {[%clk
0:00:38]} 18... Kh8 {[%clk 0:02:02.5]} 19. O-O {[%clk 0:00:38.4]} 19... Re8
{[%clk 0:01:50.8]} 20. Qh3 {[%clk 0:00:17]} 20... Nxb2 {[%clk 0:01:49.6]} 21.
Rab1 {[%clk 0:00:17.5]} 21... Nd3 {[%clk 0:01:48]} 22. Bd2 {[%clk 0:00:14.9]}
22... f5 {[%clk 0:01:42.1]} 23. Nb5 {[%clk 0:00:14.3]} 23... a6 {[%clk
0:01:39.3]} 24. Na3 {[%clk 0:00:13.4]} 24... b5 {[%clk 0:01:37.5]} 25. Rfd1
{[%clk 0:00:11.6]} 25... Nb2 {[%clk 0:01:17.1]} 26. Rxb2 {[%clk 0:00:08]} 26...
Bxb2 {[%clk 0:01:18]} 27. Nb1 {[%clk 0:00:08]} 27... Bg7 {[%clk 0:01:14.6]} 28.
Rf1 {[%clk 0:00:06.9]} 28... Rc2 {[%clk 0:01:12.7]} 29. Be3 {[%clk 0:00:02.7]}
29... Rxa2 {[%clk 0:01:10.6]} 30. g4 {[%clk 0:00:03.2]} 30... fxg4 {[%clk
0:01:07.2]} 31. Qxg4 {[%clk 0:00:04.1]} 31... Qd5 {[%clk 0:01:04.6]} 32. Qh4
{[%clk 0:00:04.3]} 32... Rxe3 {[%clk 0:01:02.2]} 33. fxe3 {[%clk 0:00:04.3]}
33... Qg2# {[%clk 0:01:02.2]} 0-1

[Event "*** Titled Tuesday Blitz"]
[Site "Chess.com"]
[Date "2020.11.03"]
[Round "1"]
[White "dropstoneDP"]
[Black "crazy_but_lazy"]
[Result "1-0"]
[WhiteElo "2904"]
[BlackElo "2451"]
[TimeControl "180+1"]
[EndTime "10:06:27 PST"]
[Termination "dropstoneDP won by resignation"]

1. c4 {[%clk 0:02:59.9]} 1... e5 {[%clk 0:02:57]} 2. Nc3 {[%clk 0:02:59.8]} 2...
Bb4 {[%clk 0:02:56.4]} 3. Nd5 {[%clk 0:02:59.1]} 3... Be7 {[%clk 0:02:55.4]} 4.
Nf3 {[%clk 0:02:58.8]} 4... d6 {[%clk 0:02:50.4]} 5. d4 {[%clk 0:02:58.9]} 5...
c6 {[%clk 0:02:50.6]} 6. Nxe7 {[%clk 0:02:58.7]} 6... Qxe7 {[%clk 0:02:51.3]} 7.
e3 {[%clk 0:02:58.9]} 7... Nf6 {[%clk 0:02:48.3]} 8. Be2 {[%clk 0:02:59.1]} 8...
O-O {[%clk 0:02:48.5]} 9. O-O {[%clk 0:02:59]} 9... Bg4 {[%clk 0:02:48.6]} 10.
h3 {[%clk 0:02:56.7]} 10... Bh5 {[%clk 0:02:48.1]} 11. b3 {[%clk 0:02:57]} 11...
Nbd7 {[%clk 0:02:47.4]} 12. Ba3 {[%clk 0:02:57.2]} 12... c5 {[%clk 0:02:30.1]}
13. d5 {[%clk 0:02:49.4]} 13... e4 {[%clk 0:02:25.8]} 14. Nd2 {[%clk 0:02:47.5]}
14... Bxe2 {[%clk 0:02:25.7]} 15. Qxe2 {[%clk 0:02:48.4]} 15... Ne5 {[%clk
0:02:19.9]} 16. Bb2 {[%clk 0:02:47.7]} 16... Rfe8 {[%clk 0:02:10.2]} 17. Rad1
{[%clk 0:02:37]} 17... a6 {[%clk 0:02:06.6]} 18. a4 {[%clk 0:02:27.4]} 18...
Rab8 {[%clk 0:02:04]} 19. Bc3 {[%clk 0:02:25.6]} 19... Ng6 {[%clk 0:01:34.6]}
20. Rde1 {[%clk 0:01:55.2]} 20... Nd7 {[%clk 0:01:27.6]} 21. Qh5 {[%clk
0:01:50]} 21... Qh4 {[%clk 0:01:17.6]} 22. Qf5 {[%clk 0:01:45.1]} 22... Qe7
{[%clk 0:01:01]} 23. Nxe4 {[%clk 0:01:21.7]} 23... Qxe4 {[%clk 0:00:50]} 24.
Qxd7 {[%clk 0:01:20.9]} 24... Qc2 {[%clk 0:00:48.1]} 25. Rc1 {[%clk 0:01:14.3]}
25... Qxb3 {[%clk 0:00:48.1]} 26. Qxd6 {[%clk 0:01:14.8]} 26... Red8 {[%clk
0:00:43.7]} 27. Qxc5 {[%clk 0:01:13.3]} 27... Qxa4 {[%clk 0:00:41.2]} 28. Ra1
{[%clk 0:01:04.6]} 28... Qd7 {[%clk 0:00:39.6]} 29. e4 {[%clk 0:01:03.5]} 29...
f6 {[%clk 0:00:36.2]} 30. f4 {[%clk 0:01:02.3]} 30... Rbc8 {[%clk 0:00:34.2]}
31. Qd4 {[%clk 0:00:59.9]} 31... b5 {[%clk 0:00:34.3]} 32. c5 {[%clk 0:00:58.6]}
32... Qc7 {[%clk 0:00:26.5]} 33. Ba5 {[%clk 0:00:57.5]} 33... Qe7 {[%clk
0:00:22.1]} 34. Bxd8 {[%clk 0:00:56.7]} 34... Qxd8 {[%clk 0:00:23]} 35. Rxa6
{[%clk 0:00:56.3]} 35... b4 {[%clk 0:00:22.2]} 36. Rb6 {[%clk 0:00:55.9]} 36...
Qe7 {[%clk 0:00:16.4]} 37. d6 {[%clk 0:00:55.6]} 1-0

[Event "*** Titled Tuesday Blitz"]
[Site "Chess.com"]
[Date "2020.11.03"]
[Round "1"]
[White "Manukyan_Artak"]
[Black "BogdanDeac"]
[Result "0-1"]
[WhiteElo "2440"]
[BlackElo "2871"]
[TimeControl "180+1"]
[EndTime "10:06:27 PST"]
[Termination "BogdanDeac won by resignation"]

1. e4 {[%clk 0:02:57.8]} 1... c5 {[%clk 0:02:58.9]} 2. Nf3 {[%clk 0:02:57.6]}
2... d6 {[%clk 0:02:58.6]} 3. Bb5+ {[%clk 0:02:56.9]} 3... Nc6 {[%clk
0:02:58.2]} 4. O-O {[%clk 0:02:56.1]} 4... Bd7 {[%clk 0:02:58]} 5. Re1 {[%clk
0:02:55.9]} 5... Nf6 {[%clk 0:02:54.5]} 6. c3 {[%clk 0:02:56.1]} 6... a6 {[%clk
0:02:51.8]} 7. Bxc6 {[%clk 0:02:56]} 7... Bxc6 {[%clk 0:02:51.7]} 8. d4 {[%clk
0:02:56.9]} 8... Bxe4 {[%clk 0:02:44.1]} 9. Bg5 {[%clk 0:02:51.4]} 9... Bc6
{[%clk 0:02:41.7]} 10. Bxf6 {[%clk 0:02:44.7]} 10... gxf6 {[%clk 0:02:41.1]} 11.
d5 {[%clk 0:02:44.9]} 11... Bd7 {[%clk 0:02:40.9]} 12. c4 {[%clk 0:02:40.5]}
12... Rg8 {[%clk 0:02:36.9]} 13. Nc3 {[%clk 0:02:38.7]} 13... Bh3 {[%clk
0:02:23.1]} 14. g3 {[%clk 0:02:36.7]} 14... Qd7 {[%clk 0:02:18.9]} 15. Ne4
{[%clk 0:02:33.9]} 15... Bg7 {[%clk 0:02:15.5]} 16. Nh4 {[%clk 0:02:28.1]} 16...
f5 {[%clk 0:02:07.3]} 17. Ng5 {[%clk 0:02:21.6]} 17... Bg4 {[%clk 0:02:05.4]}
18. f3 {[%clk 0:02:19.9]} 18... Bd4+ {[%clk 0:02:04]} 19. Kg2 {[%clk 0:02:18.6]}
19... Rxg5 {[%clk 0:02:02.2]} 20. fxg4 {[%clk 0:02:17.3]} 20... fxg4 {[%clk
0:02:02.1]} 21. Qd3 {[%clk 0:02:15.1]} 21... Rh5 {[%clk 0:01:37.1]} 22. Re2
{[%clk 0:02:00.3]} 22... Bf6 {[%clk 0:01:31.5]} 23. Rae1 {[%clk 0:01:56.1]}
23... O-O-O {[%clk 0:01:30]} 24. Re4 {[%clk 0:01:44.5]} 24... Bxh4 {[%clk
0:01:06.9]} 25. gxh4 {[%clk 0:01:44.2]} 25... e5 {[%clk 0:00:57.7]} 26. dxe6
{[%clk 0:01:41.6]} 26... fxe6 {[%clk 0:00:57.4]} 27. Rxe6 {[%clk 0:01:41.6]}
27... Rxh4 {[%clk 0:00:57.6]} 28. Qd5 {[%clk 0:01:36.9]} 28... g3 {[%clk
0:00:42.5]} 29. hxg3 {[%clk 0:01:32.3]} 29... Rd4 {[%clk 0:00:42]} 30. Qf3
{[%clk 0:01:31.3]} 30... Rxc4 {[%clk 0:00:41.1]} 31. Re7 {[%clk 0:01:29.5]}
31... Qb5 {[%clk 0:00:33.4]} 32. Rxh7 {[%clk 0:01:14.1]} 32... Rc2+ {[%clk
0:00:20.5]} 33. Kh3 {[%clk 0:01:10.5]} 33... Qxb2 {[%clk 0:00:19.4]} 34. Ree7
{[%clk 0:00:56.1]} 34... Rh2+ {[%clk 0:00:17.5]} 35. Kg4 {[%clk 0:00:56.4]}
35... Rg8+ {[%clk 0:00:16.2]} 36. Rhg7 {[%clk 0:00:56.2]} 36... Rxg7+ {[%clk
0:00:15.8]} 37. Rxg7 {[%clk 0:00:55.8]} 37... Qxg7+ {[%clk 0:00:15.8]} 0-1

[Event "*** Titled Tuesday Blitz"]
[Site "Chess.com"]
[Date "2020.11.03"]
[Round "1"]
[White "LimeInTheCoconut"]
[Black "FlamingPhoenix2910"]
[Result "0-1"]
[WhiteElo "2412"]
[BlackElo "2823"]
[TimeControl "180+1"]
[EndTime "10:06:28 PST"]
[Termination "FlamingPhoenix2910 won on time"]

1. d4 {[%clk 0:02:59.1]} 1... Nf6 {[%clk 0:02:58.7]} 2. c4 {[%clk 0:02:55.6]}
2... e6 {[%clk 0:02:59.6]} 3. Nc3 {[%clk 0:02:53.8]} 3... d5 {[%clk 0:03:00.5]}
4. cxd5 {[%clk 0:02:51.3]} 4... exd5 {[%clk 0:03:01.4]} 5. Bg5 {[%clk
0:02:51.8]} 5... c5 {[%clk 0:03:02.3]} 6. e3 {[%clk 0:02:47.4]} 6... Nc6 {[%clk
0:03:02.7]} 7. Nf3 {[%clk 0:02:43.9]} 7... cxd4 {[%clk 0:03:03]} 8. Nxd4 {[%clk
0:02:42]} 8... Bb4 {[%clk 0:03:03.3]} 9. Be2 {[%clk 0:02:36.4]} 9... Bxc3+
{[%clk 0:03:03.5]} 10. bxc3 {[%clk 0:02:36.2]} 10... Qa5 {[%clk 0:03:04.4]} 11.
Bxf6 {[%clk 0:02:18.5]} 11... Qxc3+ {[%clk 0:03:03.5]} 12. Kf1 {[%clk
0:02:19.1]} 12... gxf6 {[%clk 0:03:03.7]} 13. Rc1 {[%clk 0:02:18.9]} 13... Qa3
{[%clk 0:03:04.4]} 14. Nxc6 {[%clk 0:02:18.4]} 14... bxc6 {[%clk 0:03:05.1]} 15.
Rxc6 {[%clk 0:02:15.8]} 15... Be6 {[%clk 0:03:05.3]} 16. Qb3 {[%clk 0:01:59.2]}
16... Qa5 {[%clk 0:02:06]} 17. Qb2 {[%clk 0:01:43.5]} 17... d4 {[%clk
0:01:44.1]} 18. Qxd4 {[%clk 0:01:24]} 18... Qxa2 {[%clk 0:01:44.1]} 19. f3
{[%clk 0:00:32.5]} 19... Rd8 {[%clk 0:01:18.5]} 20. Rd6 {[%clk 0:00:24.2]} 20...
Ke7 {[%clk 0:01:05.4]} 21. Rxd8 {[%clk 0:00:19.7]} 21... Rxd8 {[%clk 0:01:06.3]}
22. Qc5+ {[%clk 0:00:19.9]} 22... Rd6 {[%clk 0:01:06.8]} 23. Kf2 {[%clk
0:00:15.8]} 23... Kd7 {[%clk 0:01:03.9]} 24. Rc1 {[%clk 0:00:13.8]} 24... Rd2
{[%clk 0:00:47.8]} 25. Qc8+ {[%clk 0:00:02.8]} 25... Ke7 {[%clk 0:00:48.2]} 26.
Rc7+ {[%clk 0:00:01.6]} 26... Bd7 {[%clk 0:00:47.6]} 0-1

[Event "*** Titled Tuesday Blitz"]
[Site "Chess.com"]
[Date "2020.11.03"]
[Round "1"]
[White "Fins0905"]
[Black "kreonx"]
[Result "1-0"]
[WhiteElo "2626"]
[BlackElo "2309"]
[TimeControl "180+1"]
[EndTime "10:06:28 PST"]
[Termination "Fins0905 won by resignation"]

1. Nf3 {[%clk 0:03:00.2]} 1... g6 {[%clk 0:02:58.9]} 2. g3 {[%clk 0:02:59]} 2...
Bg7 {[%clk 0:02:58.9]} 3. Bg2 {[%clk 0:02:57.9]} 3... e5 {[%clk 0:02:58.9]} 4.
O-O {[%clk 0:02:56.3]} 4... Nc6 {[%clk 0:02:58.9]} 5. c4 {[%clk 0:02:55.8]} 5...
Nge7 {[%clk 0:02:55.5]} 6. Nc3 {[%clk 0:02:53.2]} 6... O-O {[%clk 0:02:54.7]} 7.
d3 {[%clk 0:02:51.4]} 7... d6 {[%clk 0:02:53.5]} 8. Rb1 {[%clk 0:02:50.4]} 8...
f5 {[%clk 0:02:53.5]} 9. Bd2 {[%clk 0:02:48]} 9... Be6 {[%clk 0:02:53]} 10. b4
{[%clk 0:02:41.3]} 10... Qd7 {[%clk 0:02:39.7]} 11. Ng5 {[%clk 0:02:36.6]} 11...
h6 {[%clk 0:02:30.9]} 12. Nxe6 {[%clk 0:02:34.4]} 12... Qxe6 {[%clk 0:02:31.8]}
13. Nd5 {[%clk 0:02:32.2]} 13... Qd7 {[%clk 0:02:28]} 14. Nxe7+ {[%clk
0:02:19.7]} 14... Qxe7 {[%clk 0:02:26.4]} 15. b5 {[%clk 0:02:18.7]} 15... Nd8
{[%clk 0:02:26.1]} 16. a4 {[%clk 0:02:12.8]} 16... f4 {[%clk 0:02:25.3]} 17. a5
{[%clk 0:02:08.1]} 17... a6 {[%clk 0:02:24]} 18. bxa6 {[%clk 0:02:03.8]} 18...
Rxa6 {[%clk 0:02:24.9]} 19. Bxb7 {[%clk 0:02:04]} 19... Nxb7 {[%clk 0:02:18.9]}
20. Rxb7 {[%clk 0:02:04.9]} 20... fxg3 {[%clk 0:02:15.4]} 21. hxg3 {[%clk
0:01:53.4]} 21... e4 {[%clk 0:01:55.5]} 22. dxe4 {[%clk 0:01:35.8]} 22... Qxe4
{[%clk 0:01:09.2]} 23. Rxc7 {[%clk 0:01:34.7]} 23... Rc6 {[%clk 0:01:09.3]} 24.
Rxc6 {[%clk 0:01:14.4]} 24... Qxc6 {[%clk 0:01:10.2]} 25. Qb3 {[%clk 0:01:12.9]}
25... Bd4 {[%clk 0:01:03]} 26. Qd3 {[%clk 0:00:57.3]} 26... Qc5 {[%clk
0:00:44.1]} 27. Qxg6+ {[%clk 0:00:52.9]} 27... Kh8 {[%clk 0:00:44.5]} 28. Qxh6+
{[%clk 0:00:48.8]} 28... Kg8 {[%clk 0:00:44.5]} 29. Qg6+ {[%clk 0:00:45.3]}
29... Kh8 {[%clk 0:00:42.2]} 30. e3 {[%clk 0:00:39.6]} 30... Be5 {[%clk
0:00:41.4]} 31. Kg2 {[%clk 0:00:36.8]} 31... Qc6+ {[%clk 0:00:29.1]} 32. e4
{[%clk 0:00:36.2]} 1-0

[Event "*** Titled Tuesday Blitz"]
[Site "Chess.com"]
[Date "2020.11.03"]
[Round "1"]
[White "Malev212"]
[Black "pirulillo"]
[Result "1-0"]
[WhiteElo "2546"]
[BlackElo "2201"]
[TimeControl "180+1"]
[EndTime "10:06:30 PST"]
[Termination "Malev212 won by resignation"]

1. c4 {[%clk 0:02:58.5]} 1... Nf6 {[%clk 0:02:59.2]} 2. Nc3 {[%clk 0:02:56.6]}
2... g6 {[%clk 0:02:58.7]} 3. e4 {[%clk 0:02:55.2]} 3... d6 {[%clk 0:02:57.7]}
4. d4 {[%clk 0:02:53]} 4... Bg7 {[%clk 0:02:58]} 5. f3 {[%clk 0:02:49.5]} 5...
O-O {[%clk 0:02:58.1]} 6. Nge2 {[%clk 0:02:49]} 6... c5 {[%clk 0:02:57.7]} 7. d5
{[%clk 0:02:47.8]} 7... e6 {[%clk 0:02:58]} 8. Ng3 {[%clk 0:02:40.4]} 8... exd5
{[%clk 0:02:57.5]} 9. cxd5 {[%clk 0:02:37.4]} 9... a6 {[%clk 0:02:57]} 10. a4
{[%clk 0:02:36]} 10... h5 {[%clk 0:02:54.2]} 11. Bg5 {[%clk 0:02:33.7]} 11...
Qa5 {[%clk 0:02:53.1]} 12. Ra3 {[%clk 0:02:25.4]} 12... Re8 {[%clk 0:02:52.1]}
13. Be2 {[%clk 0:02:24]} 13... Nh7 {[%clk 0:02:52]} 14. Be3 {[%clk 0:02:19.2]}
14... h4 {[%clk 0:02:51.7]} 15. Nf1 {[%clk 0:02:17.6]} 15... f5 {[%clk
0:02:51.8]} 16. Nd2 {[%clk 0:02:15.4]} 16... Nd7 {[%clk 0:02:45.5]} 17. Nc4
{[%clk 0:02:12.6]} 17... Qc7 {[%clk 0:02:44.8]} 18. O-O {[%clk 0:02:10.3]} 18...
Ne5 {[%clk 0:02:42.4]} 19. Nxe5 {[%clk 0:02:06.8]} 19... Bxe5 {[%clk 0:02:43.3]}
20. f4 {[%clk 0:01:57]} 20... Bxc3 {[%clk 0:02:42.5]} 21. Rxc3 {[%clk
0:01:52.2]} 21... Rxe4 {[%clk 0:02:42.3]} 22. Bf3 {[%clk 0:01:46.1]} 22... Re8
{[%clk 0:02:41.7]} 23. b4 {[%clk 0:01:45.9]} 23... b6 {[%clk 0:02:40.6]} 24.
bxc5 {[%clk 0:01:45.6]} 24... bxc5 {[%clk 0:02:39.5]} 25. Bxc5 {[%clk
0:01:38.2]} 25... dxc5 {[%clk 0:02:04.9]} 26. d6 {[%clk 0:01:36.7]} 26... Qa5
{[%clk 0:02:04.8]} 27. Bd5+ {[%clk 0:01:14.3]} 27... Kg7 {[%clk 0:01:59.1]} 28.
Qc1 {[%clk 0:01:08.2]} 28... Rb8 {[%clk 0:01:48.9]} 29. Rxc5 {[%clk 0:01:07.9]}
29... Qb6 {[%clk 0:01:45.2]} 30. a5 {[%clk 0:01:06.6]} 30... Qxd6 {[%clk
0:01:44.2]} 31. Rd1 {[%clk 0:00:55.9]} 31... Rd8 {[%clk 0:01:35.5]} 32. Rc6
{[%clk 0:00:53.7]} 32... Qd7 {[%clk 0:01:28.4]} 33. Qc3+ {[%clk 0:00:51.8]}
33... Kh6 {[%clk 0:01:26.4]} 34. Rc7 {[%clk 0:00:43.5]} 34... Qxc7 {[%clk
0:00:39.9]} 35. Qxc7 {[%clk 0:00:42.3]} 35... Bb7 {[%clk 0:00:40.3]} 36. Bb3
{[%clk 0:00:32.2]} 36... Rxd1+ {[%clk 0:00:38]} 37. Bxd1 {[%clk 0:00:31.6]} 1-0

[Event "*** Titled Tuesday Blitz"]
[Site "Chess.com"]
[Date "2020.11.03"]
[Round "1"]
[White "BillieKimbah"]
[Black "CarlssonLudvig"]
[Result "1-0"]
[WhiteElo "2861"]
[BlackElo "2437"]
[TimeControl "180+1"]
[EndTime "10:06:31 PST"]
[Termination "BillieKimbah won on time"]

1. c4 {[%clk 0:03:00.5]} 1... c5 {[%clk 0:02:54.9]} 2. Nf3 {[%clk 0:02:58.3]}
2... g6 {[%clk 0:02:53.6]} 3. e4 {[%clk 0:02:56.3]} 3... Nc6 {[%clk 0:02:53]} 4.
d4 {[%clk 0:02:55.6]} 4... cxd4 {[%clk 0:02:52.9]} 5. Nxd4 {[%clk 0:02:56.5]}
5... Nf6 {[%clk 0:02:52.9]} 6. Nc3 {[%clk 0:02:55.6]} 6... Nxd4 {[%clk
0:02:52.8]} 7. Qxd4 {[%clk 0:02:54.8]} 7... d6 {[%clk 0:02:53.3]} 8. Be2 {[%clk
0:02:54.3]} 8... Bg7 {[%clk 0:02:53.2]} 9. Be3 {[%clk 0:02:54.6]} 9... O-O
{[%clk 0:02:52.9]} 10. Qd2 {[%clk 0:02:54.5]} 10... Qa5 {[%clk 0:02:48.4]} 11.
O-O {[%clk 0:02:51]} 11... Be6 {[%clk 0:02:46.6]} 12. Rac1 {[%clk 0:02:49.2]}
12... Rfc8 {[%clk 0:02:42.5]} 13. b3 {[%clk 0:02:47.5]} 13... a6 {[%clk
0:02:38.7]} 14. a4 {[%clk 0:02:26.8]} 14... b5 {[%clk 0:02:31.8]} 15. axb5
{[%clk 0:01:42.7]} 15... axb5 {[%clk 0:02:28.5]} 16. cxb5 {[%clk 0:01:43.2]}
16... Bxb3 {[%clk 0:02:02.2]} 17. f3 {[%clk 0:01:30.2]} 17... Be6 {[%clk
0:01:25.4]} 18. Bd4 {[%clk 0:01:25.7]} 18... Qb4 {[%clk 0:00:52.5]} 19. Rfd1
{[%clk 0:01:17.6]} 19... Rab8 {[%clk 0:00:39.2]} 20. Rb1 {[%clk 0:01:10.8]}
20... Qa5 {[%clk 0:00:33.3]} 21. Rdc1 {[%clk 0:01:08.7]} 21... Rb7 {[%clk
0:00:20.5]} 22. Qe3 {[%clk 0:01:05.7]} 22... Rcb8 {[%clk 0:00:15.6]} 23. h3
{[%clk 0:00:58.5]} 23... Bd7 {[%clk 0:00:12.7]} 24. f4 {[%clk 0:00:57.7]} 24...
Qd8 {[%clk 0:00:03.8]} 25. e5 {[%clk 0:00:56.3]} 25... dxe5 {[%clk 0:00:04]} 26.
fxe5 {[%clk 0:00:57.2]} 26... Ne8 {[%clk 0:00:04]} 27. Bf3 {[%clk 0:00:56.4]}
27... Rc7 {[%clk 0:00:03.8]} 28. b6 {[%clk 0:00:50.9]} 28... Rc4 {[%clk
0:00:03.6]} 29. Nd5 {[%clk 0:00:51.1]} 29... Rxc1+ {[%clk 0:00:02.6]} 30. Rxc1
{[%clk 0:00:52]} 30... Be6 {[%clk 0:00:01.3]} 31. Nc7 {[%clk 0:00:49.6]} 1-0